bitfinex-derivatives/quotes_BTCF0:USTF0_20251217
["timestamp","ask_amount","ask_price","bid_price","bid_amount"]
[1766004704391,0.3608,86072.0,86058.0,0.3618001]
[1766004706088,0.3608,86072.0,86059.0,0.0116235]
[1766004706684,0.3608,86072.0,86063.0,0.0116229]
[1766004707288,0.00017426,86076.0,86066.0,0.3608]
[1766004708194,0.001,86072.0,86066.0,0.3608]
[1766004709694,0.00017426,86076.0,86066.0,0.3608]
[1766004710001,0.00217426,86076.0,86066.0,0.3608]
[1766004710388,0.002,86072.0,86066.0,0.3608]
[1766004710896,0.00017426,86076.0,86066.0,0.3608]
[1766004711098,0.00217426,86076.0,86066.0,0.3608]
[1766004711595,0.0923737,86085.0,86070.0,0.0116221]
[1766004711796,0.0923737,86085.0,86072.0,0.0116218]
[1766004712895,0.0923737,86085.0,86074.0,0.0116215]
[1766004713299,0.001,86076.0,86074.0,0.0116215]
[1766004713595,0.0923737,86085.0,86074.0,0.0116215]
[1766004713798,0.00017426,86087.0,86081.0,0.3608]
[1766004715400,0.3608,86095.0,86083.0,0.0116203]
[1766004715696,0.3608,86095.0,86088.0,0.3608]
[1766004716090,0.0297041,86108.0,86088.0,0.3608]
[1766004716091,0.06255882,86129.0,86094.0,0.3608]
[1766004716292,0.01589375,86129.0,86110.0,0.7216]
[1766004716490,0.3608,86131.0,86110.0,0.3608]
[1766004716692,0.46553718,86131.0,86111.0,0.0116165]
[1766004716888,0.45392328,86131.0,86119.0,0.3608]
[1766004717087,0.011614,86130.0,86119.0,0.3608]
[1766004717290,0.47022857,86131.0,86119.0,0.3608]
[1766004717291,0.0116144,86128.0,86119.0,0.3608]
[1766004717998,0.0116146,86126.0,86119.0,0.3608]
[1766004718488,0.0116148,86125.0,86119.0,0.3608]
[1766004718685,0.0116155,86119.0,86116.0,0.00017426]
[1766004718895,0.0116158,86117.0,86116.0,6e-08]
[1766004719696,0.0116173,86106.0,86088.0,0.3724196]
[1766004719895,0.3608,86100.0,86088.0,0.3724196]
[1766004720091,0.3608,86100.0,86088.0,0.3608]
[1766004720291,0.3608,86100.0,86066.0,0.0116226]
[1766004720292,0.3608,86092.0,86072.0,0.3608]
[1766004720491,0.3608,86092.0,86075.0,0.0116214]
[1766004720698,0.36097426,86092.0,86075.0,0.01179566]
[1766004720895,0.36097426,86092.0,86088.0,0.001]
[1766004721490,0.36097426,86092.0,86075.0,0.00217426]
[1766004721891,0.37259346,86092.0,86075.0,0.00217426]
[1766004722087,0.36097426,86092.0,86075.0,0.00217426]
[1766004722507,0.36097426,86092.0,86077.0,0.011621]
[1766004723191,0.36097426,86092.0,86079.0,0.3608]
[1766004723396,0.36097426,86092.0,86081.0,0.0116205]
[1766004723796,0.36097426,86092.0,86079.0,0.3608]
[1766004724304,0.36097426,86092.0,86080.0,0.0116207]
[1766004725093,0.36097426,86092.0,86082.0,0.0116204]
[1766004725505,0.36097426,86092.0,86079.0,0.3724208]
[1766004726204,0.36097426,86092.0,86079.0,0.3734208]
[1766004726504,0.36097426,86092.0,86082.0,0.0116205]
[1766004727007,0.36097426,86092.0,86079.0,0.3734208]
[1766004727801,0.3608,86099.0,86087.0,0.3608]
[1766004728398,0.37565089,86099.0,86087.0,0.3608]
[1766004728602,0.37565089,86099.0,86079.0,0.3608]
[1766004728804,0.3608,86092.0,86079.0,0.3608]
[1766004729302,0.3608,86092.0,86079.0,0.3618]
[1766004729803,0.3608,86092.0,86079.0,0.3608]
[1766004730109,0.00017426,86098.0,86091.0,0.3608]
[1766004730299,0.00017426,86098.0,86079.0,0.3628]
[1766004730495,0.3608,86094.0,86079.0,0.3734209]
[1766004730700,0.3608,86094.0,86081.0,0.0116206]
[1766004731004,0.00017426,86098.0,86089.0,0.3608]
[1766004731700,0.00017426,86098.0,86089.0,0.3724195]
[1766004731896,0.00017426,86098.0,86089.0,0.3608]
[1766004732211,0.3608,86111.0,86089.0,0.3608]
[1766004732212,0.3608,86131.0,86112.0,0.0116164]
[1766004732414,0.3608,86143.0,86122.0,0.3608]
[1766004732618,0.01518094,86139.0,86118.0,0.0116156]
[1766004732909,0.01491696,86140.0,86131.0,0.3608]
[1766004733105,0.3608,86149.0,86131.0,0.3608]
[1766004733309,1.87e-06,86138.0,86131.0,0.3608]
[1766004733896,0.00200187,86138.0,86131.0,0.3608]
[1766004735106,7e-08,86138.0,86137.0,0.3608]
[1766004735409,0.0154419,86166.0,86145.0,0.0116119]
[1766004735602,0.3608,86168.0,86147.0,0.3608]
[1766004736207,0.37624681,86168.0,86147.0,0.3608]
[1766004736511,0.00117416,86166.0,86149.0,0.00017416]
[1766004737103,0.00017416,86166.0,86149.0,0.00017416]
[1766004738714,0.00117416,86166.0,86149.0,0.00017416]
[1766004739911,0.00117416,86166.0,86157.0,0.3608]
[1766004740413,0.3608,86174.0,86164.0,0.3608]
[1766004740914,0.3608,86174.0,86149.0,0.00017416]
[1766004740915,0.3608,86167.0,86149.0,0.00017416]
[1766004741214,0.3608,86167.0,86151.0,0.3608]
[1766004741908,0.001,86166.0,86151.0,0.3608]
[1766004742308,0.3608,86167.0,86151.0,0.3608]
[1766004742608,0.3618,86167.0,86158.0,0.3608]
[1766004742910,0.00011549,86168.0,86167.0,0.011609]
[1766004742911,9e-08,86168.0,86167.0,0.011609]
[1766004743415,0.01488411,86186.0,86167.0,0.011609]
[1766004743616,0.01488411,86186.0,86177.0,0.3608]
[1766004743812,0.011605,86197.0,86185.0,0.3608]
[1766004744114,0.24996,86208.0,86185.0,0.3608]
[1766004744315,0.0116062,86189.0,86169.0,0.3608]
[1766004744523,0.3608,86184.0,86169.0,0.3608]
[1766004746119,0.0116074,86179.0,86169.0,0.3608]
[1766004746915,0.0116078,86177.0,86169.0,0.3608]
[1766004747115,0.3608,86170.0,86157.0,0.59436]
[1766004747308,0.3608,86161.0,86157.0,0.59436]
[1766004748124,0.3608,86161.0,86155.0,0.0116105]
[1766004749118,0.3608,86161.0,86150.0,0.67857405]
[1766004749119,0.3608,86161.0,86152.0,0.011611]
[1766004749330,0.3608,86161.0,86154.0,0.0116108]
[1766004749528,0.3608,86161.0,86151.0,0.0116111]
[1766004749728,0.3608,86161.0,86153.0,0.0116109]
[1766004750326,0.3608,86161.0,86150.0,0.00017405]
[1766004750529,0.3608,86154.0,86150.0,0.00017405]
[1766004750925,0.36097405,86168.0,86151.0,0.3608]
[1766004751131,0.36097405,86168.0,86159.0,0.3608]
[1766004755629,0.36097405,86168.0,86151.0,0.3608]
[1766004755831,0.36097405,86168.0,86156.0,0.0116104]
[1766004756034,0.36097405,86168.0,86158.0,0.3608]
[1766004756334,0.36097405,86168.0,86151.0,0.3608]
[1766004756730,0.36097405,86168.0,86152.0,0.011611]
[1766004757630,0.36097405,86168.0,86154.0,0.0116107]
[1766004758230,0.36097405,86168.0,86151.0,0.3608]
[1766004759031,0.36097405,86168.0,86155.0,0.0116106]
[1766004761037,0.36097405,86168.0,86154.0,0.0116107]
[1766004761628,0.36097405,86168.0,86155.0,0.0116105]
[1766004762034,0.36097405,86168.0,86151.0,0.3608]
[1766004762432,0.36097405,86168.0,86158.0,0.0116102]
[1766004762931,0.3608,86160.0,86151.0,0.3608]
[1766004763129,0.3608,86160.0,86150.0,0.00017405]
[1766004763334,0.3608,86160.0,86139.0,0.02916218]
[1766004763335,0.3608,86153.0,86139.0,0.02916218]
[1766004763640,0.3608,86140.0,86139.0,0.02916218]
[1766004763837,0.3608,86140.0,86124.0,0.3608]
[1766004763838,0.3608,86140.0,86134.0,0.0116134]
[1766004764244,0.3608,86140.0,86136.0,0.0116132]
[1766004765631,0.3608,86140.0,86130.0,0.00017405]
[1766004766037,0.3608,86140.0,86133.0,0.0116135]
[1766004766243,0.3608,86140.0,86130.0,0.00017405]
[1766004766444,0.3608,86133.0,86130.0,0.00017405]
[1766004766947,0.3608,86140.0,86130.0,0.01178805]
[1766004767447,0.3608,86140.0,86130.0,0.00017405]
[1766004767644,0.00017405,86148.0,86140.0,0.0116127]
[1766004768248,0.00017405,86148.0,86135.0,0.3608]
[1766004769148,0.00017405,86148.0,86136.0,0.0116132]
[1766004770549,0.00017405,86148.0,86138.0,0.0116129]
[1766004772447,0.00017405,86148.0,86135.0,0.3608]
[1766004772842,0.00017405,86148.0,86137.0,0.011613]
[1766004773044,5e-08,86148.0,86147.0,0.3724117]
[1766004773245,0.09175741,86201.0,86171.0,0.0116085]
[1766004773246,0.3608,86197.0,86171.0,0.0116085]
[1766004773445,0.3608,86195.0,86182.0,0.3608]
[1766004773640,0.0116057,86192.0,86182.0,0.3608]
[1766004773839,0.38754709,86195.0,86182.0,0.3608]
[1766004774249,0.0116056,86193.0,86182.0,0.3608]
[1766004774448,0.37594169,86195.0,86182.0,0.3608]
[1766004774640,0.3608,86184.0,86180.0,0.00017405]
[1766004774842,0.37594169,86195.0,86180.0,0.00017405]
[1766004775049,0.3608,86195.0,86180.0,0.00017405]
[1766004781254,0.3608,86195.0,86178.0,0.3608]
[1766004781255,0.3608,86184.0,86161.0,0.3608]
[1766004781456,0.3608,86184.0,86137.0,0.011613]
[1766004781457,0.3608,86172.0,86157.0,0.0116103]
[1766004781659,0.3608,86164.0,86159.0,0.01161]
[1766004781850,0.3608,86180.0,86163.0,0.3608]
[1766004782050,0.3608,86188.0,86171.0,0.3608]
[1766004782257,0.36097405,86188.0,86171.0,0.00017405]
[1766004782857,0.3608,86180.0,86168.0,0.001]
[1766004783256,0.3608,86180.0,86165.0,0.53228]
[1766004783458,0.3608,86180.0,86163.0,0.3724095]
[1766004783459,0.3608,86180.0,86163.0,0.99104]
[1766004783851,0.3608,86180.0,86163.0,0.99121405]
[1766004784458,0.3608,86180.0,86163.0,0.36097405]
[1766004784663,0.3608,86180.0,86164.0,0.67076]
[1766004786450,0.3608,86180.0,86164.0,0.6823694]
[1766004786961,0.3608,86180.0,86164.0,0.6833694]
[1766004787263,0.3608,86180.0,86164.0,0.67176]
[1766004788459,0.3608,86180.0,86164.0,0.001]
[1766004789961,0.3608,86180.0,86163.0,1.05845405]
[1766004790260,0.00017405,86188.0,86171.0,0.3608]
[1766004790462,0.00017405,86188.0,86170.0,0.22989036]
[1766004790766,0.00017405,86188.0,86178.0,0.0116075]
[1766004790967,0.00017405,86188.0,86178.0,0.0116074]
[1766004791168,0.00017405,86188.0,86175.0,0.3724078]
[1766004792255,0.00017405,86188.0,86175.0,0.3608]
[1766004793268,0.00017405,86188.0,86177.0,0.0116076]
[1766004796169,0.00017405,86188.0,86176.0,0.25448]
[1766004796573,0.00017405,86188.0,86176.0,0.2660878]
[1766004797070,0.00017405,86188.0,86176.0,0.5037678]
[1766004797254,0.00017405,86188.0,86166.0,0.0290865]
[1766004797459,0.3608,86178.0,86163.0,0.00017405]
[1766004798269,0.3608,86178.0,86164.0,0.38624]
[1766004798859,0.3608,86178.0,86163.0,0.00017405]
[1766004799162,0.3608,86178.0,86164.0,0.0116094]
[1766004799569,0.3608,86182.0,86167.0,0.011609]
[1766004800269,0.3608,86174.0,86163.0,0.00017405]
[1766004800464,0.3608,86164.0,86150.0,0.4182]
[1766004800769,0.3608,86164.0,86138.0,0.01393477]
[1766004800770,0.3608,86157.0,86138.0,0.00232187]
[1766004800970,0.3608,86150.0,86141.0,0.0116125]
[1766004801167,0.3608,86150.0,86138.0,0.26220072]
[1766004801372,0.3608,86150.0,86141.0,0.0116124]
[1766004801673,0.00017405,86154.0,86149.0,0.0116114]
[1766004802463,5e-08,86154.0,86149.0,0.0116114]
[1766004803158,5e-08,86154.0,86149.0,0.0126114]
[1766004804076,5e-08,86154.0,86151.0,0.0116112]
[1766004804465,5e-08,86154.0,86149.0,0.001]
[1766004805470,5e-08,86154.0,86151.0,0.001]
[1766004805868,5e-08,86154.0,86147.0,0.0116117]
[1766004806070,5e-08,86154.0,86149.0,0.001]
[1766004806573,5e-08,86154.0,86151.0,0.001]
[1766004806765,0.0116112,86151.0,86138.0,0.00232187]
[1766004807076,0.3608,86142.0,86138.0,0.00232187]
[1766004807272,0.0116125,86141.0,86120.0,0.3608]
[1766004807478,0.3608,86133.0,86120.0,0.3724153]
[1766004808065,0.3608,86133.0,86122.0,0.011615]
[1766004809067,0.3608,86133.0,86125.0,0.0116147]
[1766004810365,0.3608,86133.0,86122.0,0.012615]
[1766004811076,0.3608,86133.0,86122.0,0.001]
[1766004811767,0.3608,86133.0,86120.0,0.3608]
[1766004813663,0.3608,86121.0,86119.0,0.00017415]
[1766004815074,0.3608,86121.0,86096.0,0.3608]
[1766004815374,0.3608,86102.0,86091.0,0.21228]
[1766004815580,0.3608,86100.0,86098.0,2.95e-06]
[1766004816282,0.3608,86100.0,86099.0,0.003]
[1766004816471,0.36093117,86100.0,86099.0,0.003]
[1766004817576,0.36093117,86100.0,86098.0,2.95e-06]
[1766004818168,0.36093117,86100.0,86090.0,0.00011658]
[1766004818374,0.3608,86091.0,86065.0,0.3608]
[1766004818573,0.3608,86091.0,86062.0,0.09326305]
[1766004818574,0.3608,86073.0,86062.0,0.09326305]
[1766004818784,0.3608,86073.0,86060.0,0.3608]
[1766004819680,0.3608,86073.0,86065.0,0.0116227]
[1766004819880,0.3608,86073.0,86062.0,0.0116232]
[1766004820573,0.3608,86073.0,86065.0,0.004]
[1766004821092,0.3608,86073.0,86062.0,0.0136232]
[1766004821583,0.3608,86073.0,86062.0,0.0116232]
[1766004821772,0.3608,86073.0,86065.0,0.001]
[1766004822177,0.3608,86073.0,86062.0,0.0116232]
[1766004822977,0.3608,86073.0,86064.0,0.0116228]
[1766004824879,0.00013967,86072.0,86064.0,0.0116228]
[1766004825379,0.00013967,86072.0,86066.0,0.0116226]
[1766004825580,0.00013967,86072.0,86061.0,0.0116233]
[1766004825781,0.00013967,86072.0,86064.0,0.0116229]
[1766004825981,0.00013967,86072.0,86063.0,0.011623]
[1766004826182,0.00013967,86072.0,86060.0,0.3608]
[1766004826590,0.3608,86066.0,86054.0,0.00013323]
[1766004826779,0.3608,86059.0,86054.0,0.00013323]
[1766004826979,0.3608,86059.0,86050.0,0.3608]
[1766004827785,0.3608,86052.0,86045.0,0.24084]
[1766004827988,9.846e-05,86051.0,86045.0,0.24084]
[1766004828200,9.846e-05,86051.0,86033.0,0.3893151]
[1766004828390,0.3608,86045.0,86033.0,0.3893151]
[1766004828586,0.3608,86038.0,86033.0,0.0285151]
[1766004828785,0.3608,86038.0,86027.0,0.0116279]
[1766004829589,0.3608,86038.0,86024.0,0.0116283]
[1766004829892,0.3608,86038.0,86023.0,1.09012]
[1766004830890,0.00017436,86040.0,86032.0,0.3608]
[1766004831083,0.00017436,86040.0,86034.0,0.0116269]
[1766004831290,0.00017436,86040.0,86032.0,0.3608]
[1766004831686,0.00017436,86040.0,86028.0,0.0116277]
[1766004831877,0.00017436,86040.0,86030.0,0.3608]
[1766004833696,0.00017436,86040.0,86030.0,0.3724275]
[1766004833883,0.00017436,86040.0,86028.0,0.001]
[1766004833884,0.3608,86039.0,86028.0,0.001]
[1766004834092,0.3608,86039.0,86029.0,0.0116276]
[1766004834390,0.3608,86039.0,86028.0,0.001]
[1766004834391,0.3608,86039.0,86030.0,0.001]
[1766004834989,0.3608,86039.0,86028.0,0.001]
[1766004835288,0.3608,86046.0,86029.0,0.3608]
[1766004835490,0.3608,86039.0,86030.0,0.001]
[1766004836493,0.3608,86039.0,86026.0,0.00017436]
[1766004836693,0.3608,86039.0,86028.0,0.001]
[1766004837291,0.3608,86039.0,86026.0,0.00017436]
[1766004837494,0.3608,86039.0,86023.0,0.52764436]
[1766004838197,0.3608,86039.0,86030.0,0.001]
[1766004838588,0.3608,86039.0,86023.0,0.52764436]
[1766004838791,0.3608,86039.0,86023.0,0.52864436]
[1766004839188,0.3608,86039.0,86024.0,0.0116282]
[1766004840300,0.3608,86032.0,86021.0,0.0116287]
[1766004840492,0.3608,86032.0,86020.0,0.3608]
[1766004840493,0.00010935,86038.0,86027.0,0.3608]
[1766004840696,0.00010935,86038.0,86034.0,0.3608]
[1766004841404,0.00010935,86038.0,86034.0,0.372427]
[1766004841615,0.00010935,86038.0,86035.0,0.0116268]
[1766004841808,0.00017436,86043.0,86038.0,0.0116264]
[1766004841809,1e-08,86043.0,86038.0,0.0116264]
[1766004842003,1e-08,86043.0,86035.0,0.0116268]
[1766004842210,1e-08,86043.0,86034.0,0.3608]
[1766004842919,0.00010555,86042.0,86034.0,0.3608]
[1766004843327,0.3608,86066.0,86041.0,0.3608]
[1766004843616,0.0116224,86068.0,86060.0,0.3608]
[1766004844010,0.02632291,86068.0,86060.0,0.3608]
[1766004844204,0.0116227,86066.0,86060.0,0.3608]
[1766004845321,8.365e-05,86067.0,86060.0,0.3608]
[1766004845713,8.365e-05,86067.0,86062.0,0.0116232]
[1766004845918,6e-08,86072.0,86061.0,0.3608]
[1766004846223,6e-08,86072.0,86071.0,0.3608]
[1766004846928,0.0116196,86089.0,86072.0,0.0116218]
[1766004847215,0.3608,86087.0,86072.0,0.0116218]
[1766004848010,0.3608,86087.0,86078.0,0.3608]
[1766004848719,0.001,86087.0,86078.0,0.3608]
[1766004849205,0.00017426,86088.0,86078.0,0.3608]
[1766004849403,0.002,86087.0,86078.0,0.3608]
[1766004849609,0.002,86087.0,86079.0,0.0116209]
[1766004849920,0.002,86087.0,86078.0,0.3608]
[1766004850215,0.002,86087.0,86074.0,6e-08]
[1766004850414,0.002,86087.0,86026.0,0.04176362]
[1766004850415,0.3608,86078.0,86045.0,0.3608]
[1766004850613,0.3608,86066.0,86052.0,0.3608]
[1766004852121,0.3618,86066.0,86052.0,0.3608]
[1766004853425,0.00017426,86068.0,86063.0,0.3608]
[1766004853623,0.3608,86078.0,86063.0,0.3608]
[1766004856127,0.0116214,86076.0,86063.0,0.3608]
[1766004856323,0.3608,86070.0,86052.0,0.3608]
[1766004856820,0.3608,86070.0,86059.0,0.3608]
[1766004861521,0.00017426,86079.0,86067.0,0.3608]
[1766004863122,0.3608,86078.0,86067.0,0.3608]
[1766004863819,0.3608,86078.0,86062.0,0.0116231]
[1766004864230,0.3608,86078.0,86064.0,0.0116229]
[1766004864427,0.3608,86078.0,86066.0,0.3608]
[1766004864928,0.3608,86078.0,86061.0,0.0116232]
[1766004865427,0.3608,86078.0,86066.0,0.3608]
[1766004865831,0.02952762,86089.0,86066.0,0.3608]
[1766004865832,0.00232295,86098.0,86077.0,0.3608]
[1766004866040,0.00232295,86098.0,86097.0,0.3608]
[1766004866415,0.00232295,86098.0,86091.0,0.3608]
[1766004866931,0.00332295,86098.0,86091.0,0.3608]
[1766004867522,0.00232295,86098.0,86091.0,0.3608]
[1766004867722,0.01589214,86098.0,86091.0,0.3608]
[1766004868224,0.00232295,86098.0,86091.0,0.3608]
[1766004868423,0.00232295,86098.0,86091.0,0.32596]
[1766004870229,0.00232295,86098.0,86086.0,0.00017426]
[1766004870230,0.36312295,86098.0,86086.0,0.00017426]
[1766004870925,0.0116191,86093.0,86086.0,0.00017426]
[1766004871126,0.3608,86087.0,86086.0,6e-08]
[1766004873433,0.3628,86087.0,86086.0,6e-08]
[1766004873638,0.3628,86087.0,86070.0,0.3608]
[1766004873826,0.0116209,86080.0,86070.0,0.3608]
[1766004874131,0.0116205,86083.0,86070.0,0.3608]
[1766004874634,0.00017426,86085.0,86070.0,0.3608]
[1766004874824,0.0116207,86081.0,86070.0,0.3608]
[1766004876036,0.00017426,86085.0,86070.0,0.3608]
[1766004876835,0.0116205,86082.0,86070.0,0.3608]
[1766004877940,0.0116204,86083.0,86070.0,0.3608]
[1766004879428,0.0116204,86083.0,86070.0,0.3618]
[1766004879932,0.00017426,86085.0,86070.0,0.3608]
[1766004880127,0.00017426,86085.0,86070.0,0.001]
[1766004880340,0.0116236,86060.0,86044.0,0.3608]
[1766004880630,0.3608,86052.0,86046.0,0.0116253]
[1766004880837,0.3608,86062.0,86044.0,0.3608]
[1766004881038,0.3608,86062.0,86045.0,0.0116255]
[1766004881340,0.3608,86062.0,86060.0,0.3608]
[1766004881341,0.00017426,86062.0,86060.0,0.3608]
[1766004881535,0.0116214,86076.0,86060.0,0.3608]
[1766004881742,0.3608,86070.0,86060.0,0.3608]
[1766004883234,0.3608,86070.0,86056.0,0.00017426]
[1766004890229,0.0116224,86068.0,86056.0,0.00017426]
[1766004890430,0.3608,86063.0,86056.0,0.00017426]
[1766004892739,0.3608,86072.0,86056.0,0.00017426]
[1766004893045,0.3608,86064.0,86056.0,0.00017426]
[1766004893238,0.09177912,86076.0,86056.0,0.00017426]
[1766004893239,0.5623,86095.0,86063.0,0.3608]
[1766004893440,0.3608,86095.0,86083.0,0.3608]
[1766004893634,0.3608,86095.0,86076.0,0.3608]
[1766004893635,0.0116198,86088.0,86076.0,0.3608]
[1766004893836,0.01162,86086.0,86076.0,0.3608]
[1766004894345,0.0116203,86084.0,86076.0,0.3608]
[1766004894540,0.3608,86087.0,86076.0,0.3608]
[1766004894839,0.3608,86079.0,86072.0,0.00017426]
[1766004895340,0.00017426,86090.0,86078.0,0.7216]
[1766004895546,0.0116169,86109.0,86089.0,0.0116196]
[1766004895743,0.3608,86111.0,86099.0,0.0116182]
[1766004896045,0.22428,86123.0,86108.0,0.3608]
[1766004896246,0.31771855,86123.0,86108.0,0.3608]
[1766004896646,0.3608,86120.0,86108.0,0.3608]
[1766004896840,0.0116157,86118.0,86108.0,0.3608]
[1766004897236,0.3608,86120.0,86108.0,0.3608]
[1766004897752,0.0116161,86115.0,86108.0,0.3608]
[1766004898248,0.0116164,86113.0,86108.0,0.3608]
[1766004898438,0.3608,86109.0,86107.0,0.00017426]
[1766004899551,0.46816332,86123.0,86108.0,0.3608]
[1766004899746,0.46816332,86123.0,86110.0,0.0116166]
[1766004899941,0.46816332,86123.0,86108.0,0.3608]
[1766004900147,0.3608,86109.0,86107.0,0.00017426]
[1766004900343,0.3608,86109.0,86091.0,0.3608]
[1766004900650,0.3608,86109.0,86080.0,0.3724207]
[1766004900651,0.3608,86092.0,86080.0,0.3724207]
[1766004900849,0.3608,86092.0,86072.0,0.3608]
[1766004901049,0.3608,86081.0,86075.0,0.0116214]
[1766004901240,0.3608,86092.0,86077.0,0.0116211]
[1766004901549,0.3608,86085.0,86076.0,0.00017426]
[1766004901747,0.3608,86085.0,86080.0,0.001]
[1766004902147,0.3608,86085.0,86076.0,4.26e-06]
[1766004902347,0.3608,86077.0,86076.0,4.26e-06]
[1766004902551,0.3608,86077.0,86053.0,0.0116244]
[1766004902552,0.3608,86077.0,86014.0,0.0116296]
[1766004902746,0.3608,86052.0,86036.0,0.0116266]
[1766004903055,0.011621,86079.0,86036.0,0.0116266]
[1766004903056,0.3608,86068.0,86051.0,0.3608]
[1766004903351,0.263,86077.0,86065.0,0.3608]
[1766004904055,0.3608,86078.0,86065.0,0.3608]
[1766004904247,0.00017426,86080.0,86075.0,0.3608]
[1766004904749,0.00017426,86080.0,86062.0,0.00017426]
[1766004904750,0.0116216,86075.0,86062.0,0.00017426]
[1766004904955,0.0116226,86067.0,86053.0,0.3608]
[1766004905746,0.0116227,86066.0,86053.0,0.3608]
[1766004905953,0.0116223,86069.0,86053.0,0.3608]
[1766004906351,0.0116223,86069.0,86058.0,0.00232403]
[1766004906554,0.0116228,86066.0,86058.0,0.00232403]
[1766004906855,0.011623,86064.0,86058.0,3e-08]
[1766004907043,0.0116225,86067.0,86058.0,3e-08]
[1766004907450,0.0116223,86069.0,86058.0,3e-08]
[1766004908460,0.0116226,86067.0,86058.0,3e-08]
[1766004909055,0.0116229,86065.0,86058.0,3e-08]
[1766004909253,0.3608,86070.0,86058.0,3e-08]
[1766004909443,0.0116223,86069.0,86058.0,3e-08]
[1766004910650,0.0116226,86067.0,86058.0,3e-08]
[1766004911452,0.3608,86070.0,86058.0,3e-08]
[1766004911453,0.59115804,86070.0,86058.0,3e-08]
[1766004911759,0.011624,86056.0,86024.0,0.3608]
[1766004911952,0.3608,86033.0,86020.0,0.3608]
[1766004912548,0.3608,86033.0,86021.0,0.0116287]
[1766004913357,0.3608,86022.0,86020.0,0.002]
[1766004915257,0.3608,86022.0,86007.0,0.3608]
[1766004915850,0.3608,86022.0,86008.0,0.01175007]
[1766004916860,0.3608,86022.0,86008.0,0.00011967]
[1766004917067,0.00017436,86035.0,85956.0,0.3608]
[1766004917068,0.3608,86009.0,85956.0,0.3608]
[1766004917252,0.3608,85979.0,85978.0,9e-08]
[1766004917755,0.7216,85979.0,85978.0,9e-08]
[1766004917956,0.73333348,85979.0,85978.0,9e-08]
[1766004918559,0.73333348,85979.0,85942.0,1.45376]
[1766004918560,0.0116348,85976.0,85959.0,0.34552]
[1766004918765,0.7216,85960.0,85956.0,0.34552]
[1766004919148,0.55493,85960.0,85956.0,0.34552]
[1766004919347,0.3608,85962.0,85956.0,0.34552]
[1766004919551,0.3608,85970.0,85956.0,0.34552]
[1766004920059,0.3608,85962.0,85955.0,0.53164]
[1766004920262,0.02746,85978.0,85961.0,0.3608]
[1766004920463,0.01335367,85993.0,85977.0,0.3608]
[1766004920665,0.3608,85988.0,85977.0,0.3608]
[1766004921461,0.0116333,85987.0,85977.0,0.3608]
[1766004921660,0.0116338,85984.0,85974.0,0.00017449]
[1766004921865,0.3608,85976.0,85974.0,9e-08]
[1766004922056,0.3724349,85976.0,85974.0,9e-08]
[1766004922364,0.3608,85976.0,85974.0,9e-08]
[1766004923452,0.3608,85978.0,85974.0,9e-08]
[1766004924163,0.001,85976.0,85974.0,9e-08]
[1766004924468,0.0126349,85976.0,85974.0,9e-08]
[1766004924770,0.3618,85978.0,85974.0,9e-08]
[1766004925158,0.0116347,85977.0,85974.0,9e-08]
[1766004925362,0.001,85976.0,85974.0,9e-08]
[1766004925767,0.001,85976.0,85949.0,0.3608]
[1766004925768,0.0116364,85965.0,85934.0,3e-08]
[1766004925958,0.33851555,85940.0,85899.0,0.3608]
[1766004926159,0.3608,85918.0,85905.0,0.3724444]
[1766004926359,0.3608,85918.0,85905.0,0.3608]
[1766004926561,0.0116394,85943.0,85917.0,0.3608]
[1766004926761,0.0001746,85939.0,85929.0,0.3608]
[1766004926962,0.3608,85930.0,85918.0,0.73232]
[1766004927270,0.3608,85930.0,85919.0,0.7324]
[1766004927473,0.0116412,85929.0,85917.0,0.3608]
[1766004927665,0.3608,85922.0,85906.0,0.3608]
[1766004927872,0.00013035,85921.0,85906.0,0.3608]
[1766004928263,0.00013035,85921.0,85907.0,0.73248]
[1766004928472,0.3608,85937.0,85920.0,0.3608]
[1766004928769,0.0001746,85939.0,85931.0,0.3608]
[1766004929670,0.3608,85932.0,85926.0,0.31316]
[1766004931170,4.6e-06,85939.0,85929.0,0.3608]
[1766004931368,4.6e-06,85939.0,85936.0,0.3608]
[1766004931564,0.3608,85952.0,85936.0,0.3608]
[1766004931775,0.3608,85952.0,85945.0,0.3608]
[1766004933064,0.0116347,85977.0,85945.0,0.7216]
[1766004933376,0.0116374,85957.0,85945.0,0.3608]
[1766004933673,0.3608,85949.0,85940.0,0.0001746]
[1766004934481,0.3608,85949.0,85938.0,0.24596]
[1766004934482,0.3608,85949.0,85930.0,0.3608]
[1766004934668,0.3608,85941.0,85928.0,0.3608]
[1766004935366,0.3608,85941.0,85928.0,0.93136]
[1766004935768,0.0116397,85940.0,85928.0,0.93136]
[1766004937274,0.3608,85929.0,85926.0,4.6e-06]
[1766004937472,0.3608,85929.0,85917.0,0.0116428]
[1766004937671,0.3608,85929.0,85918.0,0.35636]
[1766004938572,0.0001746,85932.0,85920.0,0.0116423]
[1766004938772,4.6e-06,85932.0,85929.0,0.3608]
[1766004938972,4.6e-06,85932.0,85929.0,0.3724411]
[1766004939384,4.6e-06,85932.0,85929.0,0.3608]
[1766004939682,4.6e-06,85932.0,85929.0,0.3724411]
[1766004939877,4.6e-06,85932.0,85929.0,0.3608]
[1766004940381,4.6e-06,85932.0,85930.0,0.00126091]
[1766004940675,4.6e-06,85932.0,85929.0,0.3618]
[1766004940881,4.6e-06,85932.0,85931.0,0.0026482]
[1766004941281,0.3608,85945.0,85929.0,0.3734412]
[1766004941481,0.3608,85945.0,85931.0,0.00297288]
[1766004941673,0.3608,85945.0,85938.0,0.00313522]
[1766004942382,0.3608,85945.0,85939.0,0.28768]
[1766004942584,0.3608,85945.0,85941.0,0.00329756]
[1766004942779,0.3608,85945.0,85939.0,0.28768]
[1766004942989,0.3608,85945.0,85943.0,0.0034599]
[1766004943181,0.0001746,85950.0,85944.0,0.00362224]
[1766004943485,0.0001746,85950.0,85945.0,0.3608]
[1766004943687,0.0001746,85950.0,85946.0,0.0116389]
[1766004943985,0.3608,85959.0,85948.0,0.00378458]
[1766004944287,0.3608,85959.0,85953.0,0.00410926]
[1766004945184,0.0001746,85965.0,85954.0,0.3608]